Cogmind - Beta 11.1 *** ADVENTURER MODE // 2022.11.26 @ 22:21:10 Player: Olexender Result: Destroyed by Y-64 Sentinel with Wave Gun Performance ------------- Evolutions (4) 2000 Regions Visited (12) 2400 Robots Destroyed (241) 1205 Value Destroyed (7200) 7200 Prototype IDs (20) 400 Alien Tech Used (0) 0 Bonus (684) 684 TOTAL SCORE: 13889 Bonus ------- High Alert Combat Kills 184 Entered DSFs 500 Cogmind --------- Core Integrity 0/850 Matter 227/300 Energy 100/100 System Corruption 2% Temperature Cool (9) Movement Walking (195) Ox1 Location -6/Lower Caves Parts ------- > --- POWER (3) -------- (None) > --- PROPULSION (4) --- Titanium Leg Armored Leg > --- UTILITY (6) ------ High-capacity Storage Unit Advanced Sensor Array Advanced Targeting Computer Improved System Shield > --- WEAPON (2) ------- Rocket Array > --- INVENTORY (20) --- Fission Core Fusion Compressor Advanced Heat Sink Improved Target Analyzer ECM Suite Improved Core Shielding Improved Power Shielding Force Field Hacking Suite Makeshift System Shield Field Recycling Unit (44) Heart of Steel Heavy Laser Thermic Laser Phase Cannon Magnetic Acceleration Cannon Heavy Pick Peak State ------------ > --- POWER ------------ Fusion Compressor > --- PROPULSION ------- Flexi-carbon Leg Improved VSS Leg Improved VSS Leg Improved VSS Leg > --- UTILITY ---------- Improved Cryofiber Web Large Storage Unit Active Sensor Suite Hacking Suite > --- WEAPON ----------- Heavy Flak Cannon Scythe > --- INVENTORY -------- Improved VSS Leg Improved VSS Leg Improved VSS Leg Advanced Weight Redist. System Advanced Sensor Array Advanced Targeting Computer Advanced Targeting Computer Transmission Jammer ECM Suite Improved Hardlight Generator Improved Shield Generator System Restoration Module Rocket Array [Rating: 74] Favorites ----------- Power Light Angular Momentum Engine Engine Light Angular Momentum Engine Power Core Light Nuclear Core Propulsion Carbon-fiber Leg Treads Advanced Treads Leg Carbon-fiber Leg Wheel Compact Wheel Flight Unit Cesium-ion Thruster Utility Large Storage Unit Device Improved Cryofiber Web Storage Large Storage Unit Processor Advanced Targeting Computer Hackware Improved System Shield Protection Core Shielding Weapon Magnetic Acceleration Cannon Energy Gun Heavy Laser Energy Cannon Advanced Beam Cannon Ballistic Gun Improved Assault Rifle Ballistic Cannon Magnetic Acceleration Cannon Launcher Rocket Array Slashing Weapon Mining Claw Piercing Weapon Heavy Pick Build | -11 -10 -10 -9 -9 -9 -8 -8 -7 -7 -6 -6 -6 ------- Run | Scr Mat Min Mat Min Exi Min Mat Fac DSF Fac Low Low Slots Evolved 8 | . . . 2 . . . 2 2 . 2 . . Power 2 | . . . . . . . 1 . . 1 . . Propulsion 2 | . . . 1 . . . . 1 . . . . Utility 4 | . . . 1 . . . 1 1 . 1 . . Weapon . | . . . . . . . . . . . . . Parts Attached 250 | 6 21 14 34 1 3 5 45 3 10 77 25 6 Power 51 | 1 3 2 6 . . 1 8 . 3 21 5 1 Engine 29 | 1 2 2 4 . . 1 2 . . 11 5 1 Core 22 | . 1 . 2 . . . 6 . 3 10 . . Reactor . | . . . . . . . . . . . . . Propulsion 60 | 2 6 4 7 . 3 2 9 1 4 15 5 2 Treads 3 | . . . 3 . . . . . . . . . Leg 47 | 2 2 2 4 . 3 2 9 1 4 15 1 2 Wheel 6 | . 4 2 . . . . . . . . . . Hover . | . . . . . . . . . . . . . Flight 4 | . . . . . . . . . . . 4 . Utility 64 | 1 7 . 4 . . 2 14 2 2 23 9 . Device 39 | . 2 . 4 . . 1 6 1 1 16 8 . Storage 5 | 1 2 . . . . . . . . 2 . . Processor 5 | . 1 . . . . . 2 . . 2 . . Hackware 4 | . . . . . . . 2 . . 2 . . Protection 11 | . 2 . . . . 1 4 1 1 1 1 . Artifact . | . . . . . . . . . . . . . Weapon 75 | 2 5 8 17 1 . . 14 . 1 18 6 3 Energy Gun 11 | 1 . . 3 . . . 1 . . 2 3 1 Energy Cannon 12 | . 1 1 6 . . . . . . 4 . . Ballistic Gun 25 | 1 2 3 5 1 . . 9 . 1 3 . . Ballistic Cannon 11 | . 1 . 1 . . . 2 . . 5 1 1 Launcher 10 | . 1 3 . . . . 1 . . 3 1 1 Special Weapon . | . . . . . . . . . . . . . Impact Weapon . | . . . . . . . . . . . . . Slashing Weapon 5 | . . 1 2 . . . 1 . . 1 . . Piercing Weapon 1 | . . . . . . . . . . . 1 . Special Melee Weapon . | . . . . . . . . . . . . . Unidentified Prototypes 13 | . 1 . 3 . . . 4 . . 4 1 . Parts Lost 60 | . 1 2 1 . . 2 9 . 6 22 8 9 Power 16 | . 1 . . . . . 2 . 1 7 2 3 Propulsion 23 | . . 1 . . . 2 3 . 3 7 5 2 Utility 9 | . . . 1 . . . 2 . 1 3 . 2 Weapon 12 | . . 1 . . . . 2 . 1 5 1 2 Highest Loss Streak 5 | . 1 2 1 . . 2 4 . 3 5 3 5 To Critical Strikes 1 | . . . . . . 1 . . . . . . Average Slot Usage (%) 89 | . 99 98 98 100 100 99 98 98 92 82 87 70 Engine 7 | . 11 14 7 11 11 11 . . . 6 12 6 Core 5 | . 2 . 3 . . . 16 15 14 6 . . Treads 3 | . . . 15 33 28 . . . . . . . Leg 15 | . 2 2 17 . 5 32 26 29 25 24 7 5 Wheel 2 | . 25 24 . . . . . . . . . . Flight 2 | . . . . . . . . . . . 13 4 Device 11 | . 4 . 10 11 11 11 6 7 7 13 14 19 Storage 8 | . 14 14 11 11 11 11 9 7 7 6 6 6 Processor 3 | . 3 . . . . . . 7 7 4 6 6 Hackware 4 | . . . . . . . 10 7 7 5 6 6 Protection 5 | . 5 14 11 11 11 11 8 6 4 . 4 . Energy Gun 1 | . 3 . 2 . . . . . . . 2 5 Energy Cannon 2 | . . 2 8 11 11 11 1 . . 2 . . Ballistic Gun 6 | . 14 14 10 11 11 11 12 15 15 2 . . Ballistic Cannon 3 | . . . . . . . 3 . . 5 4 5 Launcher 1 | . 9 3 . . . . . . . . 3 . Naked Turns . | . . . . . . . . . . . . . Heaviest Build 88 | 12 34 34 38 37 37 38 46 42 43 88 81 64 Greatest Support 69 | 20 32 32 66 66 66 45 58 61 61 69 69 33 Greatest Overweight (x) 5 | . 1 1 1 . . 2 2 . 3 2 4 5 Average Overweight (x) . | . . . . . . . . . . . 1 2 Largest Inventory Capacity 20 | 8 15 15 15 15 15 15 15 15 15 20 20 20 Average Capacity 16 | 7 14 15 15 15 15 15 15 15 15 16 20 20 Most Carried 20 | 5 15 15 15 15 15 15 15 15 15 20 20 20 Average Carried 15 | 3 12 13 13 15 14 14 14 13 14 14 19 19 Final Capacity 20 | 8 15 15 15 15 15 15 15 15 15 20 20 20 Final Carried 20 | 5 14 13 15 15 13 15 15 14 14 19 20 19 Class Distribution -------------------- 44% | Hacker-Mutant 27% | Mutant 16% | Scavenger-Mutant 6% | Scavenger-Skirmisher 4% | Hacker-Skirmisher Dominant Class ---------------- Mutant | -10/Materials Mutant | -10/Mines Mutant | -9/Materials Mutant | -9/Mines Mutant | -9/Exiles Scavenger-Mutant | -8/Mines Hacker-Mutant | -8/Materials Hacker-Mutant | -7/Factory Hacker-Mutant | -7/DSF Hacker-Mutant | -6/Factory Scavenger-Mutant | -6/Lower Caves Hacker-Mutant | -6/Lower Caves Resources | -11 -10 -10 -9 -9 -9 -8 -8 -7 -7 -6 -6 -6 ----------- Run | Scr Mat Min Mat Min Exi Min Mat Fac DSF Fac Low Low Matter Collected 6484 | 266 230 665 693 . 90 158 1462 . 390 1615 780 135 Remotely . | . . . . . . . . . . . . . Salvage Created 8484 | 110 318 276 1799 47 407 431 1947 . 500 2032 419 198 Parts 503 | 7 23 20 130 1 26 31 108 . 25 109 12 11 Haulers Intercepted 14 | . 2 . 4 . . . 6 . . 2 . . Recyclers Shooed 7 | . 1 . 1 . . . 3 . . 2 . . Parts Field Recycled 14 | . . . . . . . . . . 14 . . Retrieved Matter 169 | . . . . . . . . . . 169 . . Parts Self-Destructed 22 | . . . . . . . . . . . 14 8 Prevented 1 | . . . . . . . . . . . 1 . Kills | -11 -10 -10 -9 -9 -9 -8 -8 -7 -7 -6 -6 -6 ------- Run | Scr Mat Min Mat Min Exi Min Mat Fac DSF Fac Low Low Combat Hostiles Destroyed 188 | . 7 13 38 . 4 13 35 . 12 40 17 9 Melee 5 | . . . . . . . . . . 5 . . Guns 81 | . 2 6 15 . 1 3 23 . 12 12 3 4 Cannons 77 | . . . 22 . 3 10 11 . . 20 9 2 AOE 23 | . 5 7 . . . . 1 . . 2 5 3 Classes Destroyed 18 | 2 6 1 2 . 1 1 . . 2 1 2 . Worker 7 | . 1 1 1 . . . 2 . . 2 . . Builder 9 | . 1 . 1 . . . 1 . . 6 . . Tunneler 4 | 2 . 1 1 . . . . . . . . . Hauler 14 | . 2 . 4 . . . 6 . . 2 . . Recycler 10 | 1 . 2 . 1 . . 4 . . 2 . . Operator 3 | . . . 2 . . . 1 . . . . . Watcher 16 | . 3 . 5 . . . 4 . . 4 . . Swarmer 63 | . 3 3 9 . . 7 12 . 4 12 7 6 Cutter 2 | . . . . . . . . . 2 . . . Grunt 59 | . 4 . 20 . 2 5 11 . 4 11 2 . Brawler 1 | . . . . . . . . . . . 1 . Duelist 2 | . . . . . . 1 . . 1 . . . Sentry 27 | . . . 9 . . . 10 . . 7 . 1 Hunter 6 | . . . . . 2 . 2 . . 2 . . Programmer 10 | . . . . . . . . . . 8 . 2 Heavy 1 | . . . . . . . . . 1 . . . Assembled 10 | . . 10 . . . . . . . . . . Thug 5 | . . . . . . . . . . . 5 . Butcher 1 | . . . . . . . . . . . 1 . Mutant 1 | . . . . . . . . . . . 1 . Best Kill Streak 10 | 3 6 8 10 1 2 5 8 . 4 10 6 4 Combat Bots Only 8 | . 3 5 6 . 2 5 6 . 4 8 6 4 Max Kills in Single Turn 5 | 1 5 3 2 1 1 1 2 . 2 3 2 2 Gunslinging 1 | . . . . . . . 1 . 1 . . . Exploded 3 | . 3 3 . . . . 1 . . 1 2 2 Melee 1 | . . . . . . . . . . 1 . . Uniques/NPCs Destroyed . | . . . . . . . . . . . . . Combat | -11 -10 -10 -9 -9 -9 -8 -8 -7 -7 -6 -6 -6 -------- Run | Scr Mat Min Mat Min Exi Min Mat Fac DSF Fac Low Low Damage Taken 9330 | . 244 426 685 . . 540 1704 . 1265 2993 727 746 Core 1737 | . 108 109 60 . . 73 284 . 245 537 160 161 Absorbed by Shields 876 | . . . 164 . . . 194 . 428 90 . . Redirected to Shielding 166 | . 2 22 9 . . 14 85 . 22 . 12 . Regen/Repaired (Parts) 323 | . . . 178 . . . 145 . . . . . Core Remaining (%) 58 | 100 . 13 . . . 66 48 . 65 . . . Volleys Fired 588 | 6 30 28 107 . 15 38 145 1 47 112 43 16 Largest 2 | 2 2 2 2 . 2 2 2 2 2 2 2 2 Hottest 138 | 60 60 88 93 . 93 93 112 46 46 138 135 122 Shots Fired 1074 | 12 46 38 212 . 30 60 275 2 93 210 67 29 Gun 661 | 12 39 28 121 . 15 27 205 2 93 85 21 13 Cannon 384 | . . 1 91 . 15 33 67 . . 123 41 13 Launcher 29 | . 7 9 . . . . 3 . . 2 5 3 Special . | . . . . . . . . . . . . . Kinetic 779 | 6 30 28 107 . 15 27 262 2 93 155 41 13 Thermal 227 | 6 9 1 105 . 15 33 10 . . 33 4 11 Explosive 29 | . 7 9 . . . . 3 . . 2 5 3 Electromagnetic 39 | . . . . . . . . . . 20 17 2 Robot Hit Streak 45 | 5 18 5 19 . 40 17 24 . 37 45 19 23 Robot Miss Streak 8 | 1 2 3 4 . 1 2 3 . 1 8 2 1 Penetration Max . | . . . . . . . . . . . . . Secondary Targets 7 | . 1 . . . . . 1 . 4 1 . . Max Gunslinging Chain 1 | . 1 . . . . . 1 . 1 1 . . Shots Hit Robots 827 | 8 37 23 155 . 22 43 201 . 83 189 45 21 Core Hits 492 | 6 20 24 73 2 10 19 93 . 33 151 39 22 Critical Kills 4 | . . 1 1 . . . . . 1 1 . . Critical Parts Destroyed 5 | . 2 . 1 . . . 1 . . 1 . . Critical Strikes 18 | . 2 1 2 . . . 3 . 1 3 6 . Burn 1 | . . . . . . . . . . . 1 . Meltdown 2 | . . . 1 . . . . . . 1 . . Destroy 7 | . 2 1 1 . . . 1 . 1 1 . . Blast 8 | . . . . . . . 2 . . 1 5 . Melee Attacks 28 | . . 5 4 . . . 1 . . 18 . . Impact . | . . . . . . . . . . . . . Slashing 28 | . . 5 4 . . . 1 . . 18 . . Piercing . | . . . . . . . . . . . . . Sneak Attacks 3 | . . 2 . . . . . . . 1 . . Combat Hostiles . | . . . . . . . . . . . . . Follow-up Attacks . | . . . . . . . . . . . . . Damage Inflicted 19290 | 72 852 1116 2715 22 444 839 3634 . 1278 5175 2156 987 Guns 7675 | 72 383 242 1209 . 145 322 2252 . 1278 1337 207 228 Cannons 7363 | . . . 1493 . 299 517 1183 . . 2669 992 210 Explosions 3609 | . 451 754 . . . . 199 . . 699 957 549 Melee 589 | . . 120 . . . . . . . 469 . . Ramming 54 | . 18 . 13 22 . . . . . 1 . . Kinetic 10668 | 39 294 242 1041 . 145 322 3273 . 1278 2832 992 210 Thermal 4343 | 33 89 . 1661 . 299 517 162 . . 1298 95 189 Explosive 3120 | . 451 754 . . . . 199 . . 287 880 549 Electromagnetic 516 | . . . . . . . . . . 288 189 39 Impact . | . . . . . . . . . . . . . Slashing 589 | . . 120 . . . . . . . 469 . . Piercing . | . . . . . . . . . . . . . Highest Corruption 4 | . 1 3 . . . . . . . 4 2 2 Average Corruption 1 | . 1 2 . . . . . . . 1 2 2 Corruption Purged 4 | . . . . . . . . . . 4 . . Corruption Blocked . | . . . . . . . . . . . . . Effects 91 | . . 13 . . . . . . . 32 24 22 Message Errors 19 | . . 3 . . . . . . . 7 4 5 Matter Fused 27 | . . 3 . . . . . . . 10 8 6 Heat Flow Errors 13 | . . 3 . . . . . . . 4 2 4 Energy Discharges 10 | . . 1 . . . . . . . 5 1 3 Parts Rejected 1 | . . . . . . . . . . . 1 . Data Loss (minor) 13 | . . 1 . . . . . . . 5 4 3 Data Loss (major) 3 | . . 1 . . . . . . . 1 1 . Misfires 3 | . . . . . . . . . . . 2 1 Alerts 2 | . . 1 . . . . . . . . 1 . Overload Shots . | . . . . . . . . . . . . . Overflow Damage 298 | . . 114 12 . . 18 14 . . 96 22 22 Projectiles 64 | . . . 12 . . 18 14 . . 5 15 . Explosions 201 | . . 90 . . . . . . . 82 7 22 Melee 33 | . . 24 . . . . . . . 9 . . Knockbacks 26 | . . . . . . . 3 . . 12 11 . Impact . | . . . . . . . . . . . . . Kinetic 26 | . . . . . . . 3 . . 12 11 . Secondary . | . . . . . . . . . . . . . Self-Inflicted Damage 413 | . 27 32 . . . . 13 . . 122 60 159 Shots 23 | . 4 2 . . . . 1 . . 4 5 7 Rammed 10 | . 1 . 1 8 . . . . . . . . Targets Rammed 14 | . 1 . 3 9 . . . . . 1 . . Kicked 3 | . . . 2 . . . . . . 1 . . Crushed 1 | . . . . 1 . . . . . . . . Highest Temperature 444 | 20 90 201 294 . 148 388 311 6 370 444 359 256 Average Temperature 90 | 14 50 87 72 . 45 137 73 4 113 116 155 91 Received Heat Transfer 2816 | . 123 . 317 . . 252 858 . 283 542 360 81 Effects 11 | . . . 1 . . 2 3 . 1 4 . . Shutdowns 1 | . . . . . . 1 . . . . . . Energy Bleed 2 | . . . . . . . 1 . . 1 . . Interference 5 | . . . 1 . . 1 2 . . 1 . . Matter Decay 1 | . . . . . . . . . . 1 . . Damage (minor) 2 | . . . . . . . . . 1 1 . . Siege Activations . | . . . . . . . . . . . . . Robots Corrupted . | . . . . . . . . . . . . . Combat Hostiles . | . . . . . . . . . . . . . Parts Fried . | . . . . . . . . . . . . . Impact Corruptions . | . . . . . . . . . . . . . Robots Melted 2 | . . . 1 . . . . . . 1 . . Combat Hostiles 2 | . . . 1 . . . . . . 1 . . Parts Melted 13 | . . . 5 . . 1 . . . 7 . . Heat Transferred 6831 | 75 200 . 2911 . 518 925 296 . . 1336 200 370 Parts Sabotaged . | . . . . . . . . . . . . . Parts Stolen . | . . . . . . . . . . . . . Parts Stripped . | . . . . . . . . . . . . . Power Chain Reactions 4 | . . . . . . . . . . 3 1 . Missiles Intercepted . | . . . . . . . . . . . . . Alert | -11 -10 -10 -9 -9 -9 -8 -8 -7 -7 -6 -6 -6 ------- Run | Scr Mat Min Mat Min Exi Min Mat Fac DSF Fac Low Low Peak Influence 581 | 15 202 278 581 169 . 280 460 56 269 349 . . Initial 164 | . 8 23 . 164 . . 26 56 34 122 . . Average 178 | 6 62 136 364 167 . 120 207 56 156 122 . . Maximum Alert Level 2 | . 1 1 2 . . 1 2 . 1 1 . . Low Security (%) 60 | 100 90 69 15 100 . 73 53 100 56 73 . . Level 1 27 | . 9 30 28 . . 26 36 . 43 26 . . Level 2 11 | . . . 56 . . . 10 . . . . . Level 3 . | . . . . . . . . . . . . . Level 4 . | . . . . . . . . . . . . . Level 5 . | . . . . . . . . . . . . . High Security . | . . . . . . . . . . . . . Max Security . | . . . . . . . . . . . . . Sterilizations 1 | . . . . . . . . . 1 . . . Squads Dispatched 35 | . . . 9 . . . 6 . 2 18 . . Investigation 15 | . . . 5 . . . 4 . . 6 . . Extermination 8 | . . . . . . . . . . 8 . . Reinforcement 10 | . . . 4 . . . . . 2 4 . . Assault . | . . . . . . . . . . . . . Garrison 2 | . . . . . . . 2 . . . . . Intercept . | . . . . . . . . . . . . . Searches Triggered . | . . . . . . . . . . . . . Construction Impeded 4 | . . . . . . . . . . 4 . . Haulers Reinforced . | . . . . . . . . . . . . . Active Scanning Responses 1 | . . . . . . . . . . 1 . . Cargo Convoy Interrupts . | . . . . . . . . . . . . . Stealth | -11 -10 -10 -9 -9 -9 -8 -8 -7 -7 -6 -6 -6 --------- Run | Scr Mat Min Mat Min Exi Min Mat Fac DSF Fac Low Low Distress Signals 6 | . . . 3 . . . 2 . . 1 . . Communications Jammed . | . . . . . . . . . . . . . Distress Signals . | . . . . . . . . . . . . . Times Spotted 238 | . 10 15 55 . . 13 49 . 13 54 19 10 Peak Tracking Total 8 | . 3 6 6 . . 4 6 1 4 8 5 5 Tactical Retreats 14 | . . 6 1 . . . 1 . 1 4 1 . Traps | -11 -10 -10 -9 -9 -9 -8 -8 -7 -7 -6 -6 -6 ------- Run | Scr Mat Min Mat Min Exi Min Mat Fac DSF Fac Low Low Traps Triggered 11 | . 2 . 3 . . . 3 . . 3 . . Indirectly . | . . . . . . . . . . . . . Trap Hack Attempts . | . . . . . . . . . . . . . Triggered . | . . . . . . . . . . . . . Disarmed 5 | . . . 1 . . . 4 . . . . . Reprogrammed 11 | . . . . . . . 6 . . 5 . . Reused 2 | . . . . . . . . . . 2 . . Traps Extracted . | . . . . . . . . . . . . . Installed . | . . . . . . . . . . . . . Triggered 2 | . . . . . . . . . . 2 . . Machines | -11 -10 -10 -9 -9 -9 -8 -8 -7 -7 -6 -6 -6 ---------- Run | Scr Mat Min Mat Min Exi Min Mat Fac DSF Fac Low Low Machines Disabled 13 | . 4 2 . . . . . . . 7 . . Max in Single Turn 5 | . 2 2 . . . . . . . 5 . . Garrison Access 2 | . . . . . . . 1 1 . . . . Machines Sabotaged . | . . . . . . . . . . . . . Garrisons Compromised . | . . . . . . . . . . . . . Overloaded Fab Kills . | . . . . . . . . . . . . . Hacking | -11 -10 -10 -9 -9 -9 -8 -8 -7 -7 -6 -6 -6 --------- Run | Scr Mat Min Mat Min Exi Min Mat Fac DSF Fac Low Low Machines Accessed 57 | . 8 1 13 . . . 16 2 . 13 3 1 Terminals 35 | . 6 1 7 . . . 11 1 . 9 . . Fabricators 2 | . . . . . . . . . . 2 . . Repair Stations 3 | . . . 2 . . . 1 . . . . . Recycling Units 6 | . 2 . 2 . . . 1 . . 1 . . Scanalyzers 5 | . . . 2 . . . 2 . . 1 . . Garrison Access 2 | . . . . . . . 1 1 . . . . Total Hacks 177 | . 22 1 51 . . . 52 3 . 36 11 1 Successful 139 | . 17 1 35 . . . 45 2 . 27 11 1 Failed 38 | . 5 . 16 . . . 7 1 . 9 . . Catastrophic 3 | . 1 . 1 . . . . . . 1 . . Database Lockouts . | . . . . . . . . . . . . . Manual . | . . . . . . . . . . . . . Terminals 100 | . 19 1 26 . . . 27 1 . 26 . . Fabricators 4 | . . . . . . . . . . 4 . . Repair Stations 11 | . . . 5 . . . 6 . . . . . Recycling Units 8 | . 3 . 3 . . . 1 . . 1 . . Scanalyzers 37 | . . . 17 . . . 15 . . 5 . . Garrison Access 5 | . . . . . . . 3 2 . . . . Terminal Hacks 79 | . 14 1 11 . . . 22 1 . 18 11 1 Record 9 | . . . . . . . . . . . 9 . Prototype ID Bank 3 | . . . . . . . 2 . . 1 . . Open Door 3 | . . . . . . . . . . . 2 1 Open DSF 1 | . . . . . . . . 1 . . . . Level Access Points 2 | . . . 1 . . . . . . 1 . . Branch Access Points 3 | . . . 1 . . . 1 . . 1 . . Emergency Access Points 1 | . . . . . . . . . . 1 . . Scanalyzer Index 1 | . . . 1 . . . . . . . . . Alert Level 2 | . . . . . . . 1 . . 1 . . Unreport Threat 3 | . 1 . . . . . 1 . . 1 . . Locate Traps 5 | . 2 . 2 . . . . . . 1 . . Disarm Traps 3 | . . . 1 . . . 2 . . . . . Reprogram Traps 3 | . . . . . . . 1 . . 2 . . Dispatch Records 3 | . 1 . . . . . 2 . . . . . Maintenance Status 1 | . 1 . . . . . . . . . . . Security Status 2 | . 1 . . . . . . . . 1 . . Surveillance Status 3 | . 1 . . . . . 1 . . 1 . . Transport Status 2 | . 1 . . . . . . . . 1 . . Investigation Status 6 | . . 1 . . . . 3 . . 2 . . Reinforcement Status 5 | . 1 . 1 . . . 2 . . 1 . . Recall Reinforcements 2 | . . . 1 . . . . . . 1 . . Hauler Manifests 2 | . 1 . . . . . 1 . . . . . Registered Components 3 | . 1 . . . . . 1 . . 1 . . Registered Prototypes 1 | . . . . . . . 1 . . . . . Zone Layout 10 | . 3 . 3 . . . 3 . . 1 . . Fabricator Hacks 3 | . . . . . . . . . . 3 . . Load Schematic 1 | . . . . . . . . . . 1 . . Build 2 | . . . . . . . . . . 2 . . Repair Station Hacks 10 | . . . 5 . . . 5 . . . . . Scan Component 6 | . . . 3 . . . 3 . . . . . Repair 4 | . . . 2 . . . 2 . . . . . Recycling Unit Hacks 7 | . 3 . 2 . . . 1 . . 1 . . Report Inventory 6 | . 2 . 2 . . . 1 . . 1 . . Retrieve Components 1 | . 1 . . . . . . . . . . . Scanalyzer 37 | . . . 17 . . . 15 . . 5 . . Insert Component 17 | . . . 8 . . . 7 . . 2 . . Analyze 20 | . . . 9 . . . 8 . . 3 . . Garrison Access Hacks 3 | . . . . . . . 2 1 . . . . Seal Access 2 | . . . . . . . 1 1 . . . . Coupler Status 1 | . . . . . . . 1 . . . . . Unauthorized Hacks . | . . . . . . . . . . . . . Terminals . | . . . . . . . . . . . . . Fabricators . | . . . . . . . . . . . . . Repair Stations . | . . . . . . . . . . . . . Recycling Units . | . . . . . . . . . . . . . Scanalyzers . | . . . . . . . . . . . . . Garrison Access . | . . . . . . . . . . . . . Data Cores Recovered 1 | . . . . . . . 1 . . . . . Used 1 | . . . . . . . 1 . . . . . Hacking Detections 42 | . 5 . 13 . . . 11 2 . 11 . . Full Trace Events 14 | . 1 . 5 . . . 3 . . 5 . . Feedback Events . | . . . . . . . . . . . . . Feedback Blocked . | . . . . . . . . . . . . . Robot Schematics Acquired . | . . . . . . . . . . . . . Robots Built . | . . . . . . . . . . . . . Authchips . | . . . . . . . . . . . . . Time . | . . . . . . . . . . . . . Total Robot Build Rating . | . . . . . . . . . . . . . Part Schematics Acquired 16 | . . . 8 . . . 6 . . 2 . . Parts Built 3 | . . . . . . . . . . 3 . . Authchips . | . . . . . . . . . . . . . Time 190 | . . . . . . . . . . 190 . . Total Part Build Rating 15 | . . . . . . . . . . 15 . . Parts Repaired 4 | . . . 2 . . . 2 . . . . . Time 121 | . . . 45 . . . 76 . . . . . Parts Recycled . | . . . . . . . . . . . . . Recycled Matter . | . . . . . . . . . . . . . Retrieved Matter . | . . . . . . . . . . . . . Retrieved Components 3 | . 3 . . . . . . . . . . . Parts Scanalyzed 17 | . . . 8 . . . 7 . . 2 . . Part Schematics Acquired 16 | . . . 8 . . . 6 . . 2 . . Parts Damaged 2 | . . . . . . . 1 . . 1 . . Bothacking | -11 -10 -10 -9 -9 -9 -8 -8 -7 -7 -6 -6 -6 ------------ Run | Scr Mat Min Mat Min Exi Min Mat Fac DSF Fac Low Low Used RIF Installer . | . . . . . . . . . . . . . Robots Hacked . | . . . . . . . . . . . . . Non-combat . | . . . . . . . . . . . . . Combat . | . . . . . . . . . . . . . Robot Hacks Applied . | . . . . . . . . . . . . . Relay Couplers Released . | . . . . . . . . . . . . . Fabnet Peak Effective % . | . . . . . . . . . . . . . Robots Rewired . | . . . . . . . . . . . . . Allies Hacked . | . . . . . . . . . . . . . Hacks Repelled . | . . . . . . . . . . . . . Allies | -11 -10 -10 -9 -9 -9 -8 -8 -7 -7 -6 -6 -6 -------- Run | Scr Mat Min Mat Min Exi Min Mat Fac DSF Fac Low Low Total Allies . | . . . . . . . . . . . . . Largest Group . | . . . . . . . . . . . . . Highest-Rated Group . | . . . . . . . . . . . . . Highest-Rated Ally . | . . . . . . . . . . . . . Total Orders . | . . . . . . . . . . . . . Ally Attacks . | . . . . . . . . . . . . . Total Damage . | . . . . . . . . . . . . . Kills . | . . . . . . . . . . . . . Allies Corrupted . | . . . . . . . . . . . . . Allies Melted . | . . . . . . . . . . . . . Intel | -11 -10 -10 -9 -9 -9 -8 -8 -7 -7 -6 -6 -6 ------- Run | Scr Mat Min Mat Min Exi Min Mat Fac DSF Fac Low Low Robot Analysis Total . | . . . . . . . . . . . . . Derelict Logs Recovered 2 | . . 1 . . . . . . . . . 1 Drone Launches . | . . . . . . . . . . . . . Drone Recoveries . | . . . . . . . . . . . . . Exploration | -11 -10 -10 -9 -9 -9 -8 -8 -7 -7 -6 -6 -6 ------------- Run | Scr Mat Min Mat Min Exi Min Mat Fac DSF Fac Low Low Turns Passed 15852 | 95 787 818 1876 146 666 410 2303 182 313 3981 2549 1726 Spaces Moved 8158 | 59 612 695 1061 91 430 255 1309 148 128 1714 1054 602 Core 17 | 12 . . . . . . . . . . 5 . Treads 917 | . . . 474 91 352 . . . . . . . Legs 5492 | 47 37 39 587 . 78 255 1309 148 128 1714 693 457 Wheels 1231 | . 575 656 . . . . . . . . . . Hover . | . . . . . . . . . . . . . Flight 501 | . . . . . . . . . . . 356 145 Fastest Speed 50 | 50 100 100 120 145 120 120 120 117 112 90 105 186 Average Speed 155 | 105 101 101 131 145 140 120 126 118 119 167 223 277 Slowest Speed 432 | 120 190 120 190 145 145 260 270 126 360 270 400 432 Overloaded Moves . | . . . . . . . . . . . . . Propulsion Burnouts . | . . . . . . . . . . . . . Robots Hopped 1 | . . . . . . . . . . . 1 . Cave-ins Triggered . | . . . . . . . . . . . . . Exploration Rate (%) 66 | 3 97 97 91 19 88 65 98 6 85 37 94 81 Regions Visited 12 Branch Regions 6 Pre-discovered Areas 1 | . . . . . . . . . . . 1 . Known Exits Taken 4 | . . . 1 . . 1 . 1 . 1 . . Unknown Exits Taken 7 | 1 1 1 . 1 1 . 1 . . . 1 . Scrap Searched 5 | . . 1 . . . 1 . . . . 1 2 Spaces Dug 3 | . . . 2 . . . 1 . . . . . Terrain Destroyed 376 | . 42 78 2 . . . 80 . . 88 72 14 Melee 3 | . . . 2 . . . 1 . . . . . Projectile 29 | . . . . . . . 8 . . 11 6 4 AOE 344 | . 42 78 . . . . 71 . . 77 66 10 Terrain Rammed . | . . . . . . . . . . . . . Walls Destroyed . | . . . . . . . . . . . . . Machines Disabled . | . . . . . . . . . . . . . Actions | -11 -10 -10 -9 -9 -9 -8 -8 -7 -7 -6 -6 -6 --------- Run | Scr Mat Min Mat Min Exi Min Mat Fac DSF Fac Low Low Total 10197 | 79 730 754 1321 100 469 303 1702 153 202 2579 1177 628 Wait 805 | . 25 3 71 . . . 126 . 1 553 26 . Move 8144 | 58 611 694 1060 90 429 254 1308 147 127 1713 1051 602 Hop 1 | . . . . . . . . . . . 1 . Pick Up 203 | 9 26 5 26 . 10 4 42 1 9 53 16 2 Fast Attach 17 | 2 . . 1 . . . 3 1 3 3 3 1 Attach 94 | 4 5 2 10 . . 2 15 2 4 34 13 3 Detach 14 | . . . . . . . . . . 10 4 . Swap 139 | . 16 12 23 1 3 3 27 . 3 40 9 2 Drop 135 | . 16 5 16 . 12 2 35 1 8 27 11 2 Fire 588 | 6 30 28 107 . 15 38 145 1 47 112 43 16 Melee 28 | . . 5 4 . . . 1 . . 18 . . Ram 1 | . 1 . . . . . . . . . . . Kick 3 | . . . 2 . . . . . . 1 . . Crush 10 | . . . 1 9 . . . . . . . . Escape Stasis 15 | . . . . . . . . . . 15 . . Rewire . | . . . . . . . . . . . . . Trap . | . . . . . . . . . . . . . Miscellaneous . | . . . . . . . . . . . . . Route ------- -11/Scrapyard -10/Materials (discovered 4 exits: *Mat x3 / *Min) -10/Mines (discovered 2 exits: *Mat x2) -9/Materials (discovered 5 exits: *Mat x3 / *Min x2) -9/Mines (discovered 2 exits: *Mat / *Exi) -9/Exiles -8/Mines -8/Materials (discovered 3 exits: *Fac x3) -7/Factory -7/DSF -6/Factory (discovered 6 exits: *Fac x4 / *Low x2) -6/Lower Caves -6/Lower Caves (discovered 2 exits: *Fac / Zio) History --------- Turn | Location | Event 8 | -11/Scrapyard | Discovered new exit (range 16) 96 | -11/Scrapyard | Entered Materials 316 | -10/Materials | Build established: Mutant 388 | -10/Materials | Discovered new exit (range 14) 457 | -10/Materials | Discovered new exit (range 13) 625 | -10/Materials | Discovered new exit (range 15) 699 | -10/Materials | Discovered new exit (range 11) 883 | -10/Materials | Entered Mines 939 | -10/Mines | Received a Rocket Launcher from a helpful Derelict 997 | -10/Mines | Assembled infested the area 1032 | -10/Mines | Core integrity fell below 50% 1100 | -10/Mines | Core integrity fell below 20% 1151 | -10/Mines | Discovered new exit (range 15) 1365 | -10/Mines | Learned 2 Materials zone layouts 1404 | -10/Mines | Discovered new exit (range 10) 1701 | -10/Mines | Entered Materials 1701 | -9/Materials | Evolved 2 slots: Propulsion x1, Utility x1 1702 | -9/Materials | Identified exit to Mines 1829 | -9/Materials | Repaired Assault Rifle 2144 | -9/Materials | Discovered exit to Mines (range 8) 2240 | -9/Materials | Discovered new exit (range 15) 2420 | -9/Materials | Repaired Imp. Aluminum Leg 2767 | -9/Materials | Identified exit to Materials 3577 | -9/Materials | Entered Mines 3604 | -9/Mines | Discovered exit to Materials (range 5) 3715 | -9/Mines | Deemed a non-threat by the Exiles lab entrance 3715 | -9/Mines | Discovered new exit (range 6) 3723 | -9/Mines | Entered Exiles 3723 | -9/Exiles | Found Exiles lab destroyed 4377 | -9/Exiles | Discovered new exit (range 12) 4389 | -9/Exiles | Entered Mines 4793 | -8/Mines | Discovered exit to Materials (range 5) 4799 | -8/Mines | Entered Materials 4799 | -8/Materials | Evolved 2 slots: Power x1, Utility x1 4953 | -8/Materials | Build established: Scavenger-Mutant 4962 | -8/Materials | Lost 3 parts (1p1u1w) 5117 | -8/Materials | Found Prototype Launcher 5118 | -8/Materials | Identified Rocket Array 5122 | -8/Materials | Found Rocket Array 5126 | -8/Materials | Found Rocket Array 5129 | -8/Materials | Found Rocket Array 5340 | -8/Materials | Build established: Hacker-Mutant 5373 | -8/Materials | Lost 4 parts (1p2n1u) 5607 | -8/Materials | Repaired Lgt. Nuclear Core 5647 | -8/Materials | Repaired Titanium Leg 5718 | -8/Materials | Discovered new exit (range 11) 6290 | -8/Materials | Garrison activated, responded to threat 6458 | -8/Materials | Core integrity fell below 50% 6916 | -8/Materials | Discovered new exit (range 15) 7097 | -8/Materials | Discovered new exit (range 4) 7102 | -8/Materials | Entered Factory 7102 | -7/Factory | Evolved 2 slots: Propulsion x1, Utility x1 7284 | -7/Factory | Identified exit to DSF 7284 | -7/Factory | Entered DSF 7305 | -7/DSF | Additional patrols routed to DSF 7476 | -7/DSF | Found Prototype Device 7513 | -7/DSF | Sterilization system engaged 7533 | -7/DSF | Ambient heat levels rising (+10) 7548 | -7/DSF | Ambient heat levels rising (+10) 7550 | -7/DSF | Lost 3 parts (2n1u) 7561 | -7/DSF | Discovered new exit (range 15) 7563 | -7/DSF | Ambient heat levels rising (+10) 7578 | -7/DSF | Ambient heat levels rising (+10) 7593 | -7/DSF | Ambient heat levels rising (+10) 7597 | -7/DSF | Entered Factory 7597 | -6/Factory | Evolved 2 slots: Power x1, Utility x1 7600 | -6/Factory | Identified Active Sensor Suite 7899 | -6/Factory | Build established: Scavenger-Skirmisher 8530 | -6/Factory | Identified exit to Lower Caves 8840 | -6/Factory | Build established: Hacker-Skirmisher 9269 | -6/Factory | Identified exit to Factory 9657 | -6/Factory | Fabricated Lgt. Angular Momentum Engine? 9683 | -6/Factory | Lost 4 parts (2n1u1w) 9729 | -6/Factory | Build established: Hacker-Mutant 10161 | -6/Factory | Fabricated Adv. Sensor Array? 10441 | -6/Factory | Core integrity fell below 50% 11001 | -6/Factory | Destroyed 8 combat bots 11266 | -6/Factory | Lost 5 parts (2p1n1u1w) 11578 | -6/Factory | Entered Lower Caves 11944 | -6/Lower Caves | Attacked by a faux Warlord 11968 | -6/Lower Caves | Core integrity fell below 20% 11990 | -6/Lower Caves | Lost 3 parts (2n1w) 12269 | -6/Lower Caves | Learned location of Armory (-4) 12269 | -6/Lower Caves | Learned Research trap positions 12269 | -6/Lower Caves | Learned Extension trap positions 12269 | -6/Lower Caves | Learned Armory stockpile data 12269 | -6/Lower Caves | Learned Research terminal intel 12748 | -6/Lower Caves | Build established: Scavenger-Mutant 13045 | -6/Lower Caves | Encountered a Warlord checkpoint 13334 | -6/Lower Caves | Found Prototype Device 13375 | -6/Lower Caves | Identified Heart of Steel 13997 | -6/Lower Caves | Discovered new exit (range 10) 14127 | -6/Lower Caves | Entered another Lower Caves area 14187 | -6/Lower Caves | Discovered exit to Factory (range 5) 14418 | -6/Lower Caves | Lost 4 parts (2p2n) 14562 | -6/Lower Caves | Attracted the attention of an 0b10 checkpoint 14666 | -6/Lower Caves | Build established: Hacker-Mutant 15444 | -6/Lower Caves | Identified exit to Zion 15590 | -6/Lower Caves | Encountered a Warlord checkpoint 15853 | -6/Lower Caves | Destroyed by Y-64 Sentinel with Wave Gun Last Messages --------------- 15838_ Penetrated by Slug. 15838_ Magnetic Acceleration Cannon destroyed. 15839_ P-60 Hacker resets Y-64 Sentinel, system corruption cleaned. 15842_ S-27 Virus destroyed. 15842_ Slug penetrates P-60 Hacker. 15843_ Hpw. Shock Rifle destroyed. 15845_ Penetrated by Slug. 15845_ S-27 Virus destroyed. 15845_ Lgt. Angular Momentum Engine destroyed. 15845_ Destroyed Lgt. Angular Momentum Engine. 15845_ Destroyed Gravmag System. 15845_ Adv. Weight Redist. System destroyed. 15845_ Destroyed Adv. Weight Redist. System. 15845_ P-60 Hacker destroyed. 15847_ Imp. Cryofiber Web destroyed. 15847_ Penetrated by Slug. 15848_ Destroyed Shock Rifle. 15848_ P-60 Hacker destroyed. 15850_ Slug penetrates WAR.Sys. 15850_ WAR.Sys disabled. Map ----- +----------------------------------------------------+ | ?????????????????????????????????????????????????? | | ?????????????????????????????????????????????????? | | ?????????????????????????????????????????????????? | | ?????????????????????????????????????????????????? | | ?????????????????????????????????????????????????? | | ?????????????????????????????????????????????????? | | ?????????????????????????????????????????????????? | | ?????????????????????????????????????????????????? | | ?????????????????????????????????????????????????? | | ?????????????????????????????????????????????????? | | ?????????????????????????????????????????????????? | | ?????????????????????????????????????????????????? | | ?????????????????????????????????????????????????? | | ?????????????????????????????????????????????????? | | ????????#######??????????????????###????###??????? | | ????????# ##????###??#?????##"##??## #?###### | | #????##### ##???# #?? ?????# #### ### | | ##??## #?# ##??# ###;####??# ## ## | | #### #?# ##?# #### | | ##### ### ## # | | ### # #### | | ##### ## ### ### ##### #### | | ????# #### #### ###???## ##?# | | ????## ## ##"" ## #??????### #??# | | ?????# ### #X" "# #????????###??# | | #????# ? #?# ## @ "# #????????????## | | ##???# ### #" "# #????????????# | | ##??# ## #" "# #???#####???## | | ##?# # #" "# ??## ##### | | #?######## #" "# ??# | | #??????## #"" Y ""# ?# | | ####??## ##""" ""## ?## | | #### ###"""""## ##?# | | # #######? #### | | ### ??? ### "" | | # ###### ##??###### #??# # "" " | | ## ###????####?????????????? ??## # """ " " | | ?# ##??###???????######?????? #??# # """ | | ?## #??## ##??????? ##???? #???# "" "" | | ??# #??# ######### #### ###### # " """" | | ### #?## # ## # ## ### "" | | ### # ## # ### | | ### # ######## ## ### # | | ??# # ##?????## ##?# # | | ??#### # ## #??????## ##??# < | | ??### # # #### # ########## ##### | | ?## # #??# # | | ## # # ### #??## # | | # # ######?## #???### ########## #### ## | | # # #???????# #?????####????????## ##??# ##? | +----------------------------------------------------+ Best States ------------- Heat Dissipation 56 Energy Generation 44 Energy Capacity 420 Matter Stores 300 Matter Capacity 300 Sight Range 16 Robot Scan Range 20 Terrain Scan Density 10 ECM Strength 1 Jamming Range 12 Cloak Strength 3 Additional Mass Support 9 Base Temperature (-) 150 Armor Coverage 150 Resistance: KI 20 Resistance: TH 20 Resistance: EX 20 Resistance: EM 20 Resistance: I 20 Resistance: S 20 Resistance: P 20 Core Shielding 30 Utility Shielding 66 Evasion (%) 55 Targeting Accuracy 16 Recoil Reduction 3 Offensive Hacking 21 Defensive Hacking 12 Item Schematics ----------------- Mni. Grenade Launcher | -9/Materials | Scanalyzed Imp. Aluminum Leg | -9/Materials | Scanalyzed Adv. Beam Cannon | -9/Materials | Scanalyzed Rocket Launcher | -9/Materials | Scanalyzed Hcp. Matter Pod | -9/Materials | Scanalyzed Assault Cannon | -9/Materials | Scanalyzed Imp. Medium Laser | -9/Materials | Scanalyzed Lgt. Nuclear Core | -9/Materials | Scanalyzed Hvy. Assault Rifle | -8/Materials | Scanalyzed Autogun | -8/Materials | Scanalyzed Hardlight Generator | -8/Materials | Scanalyzed Katana | -8/Materials | Scanalyzed Imp. Assault Rifle | -8/Materials | Scanalyzed Adv. Heat Sink | -8/Materials | Scanalyzed Force Field | -6/Factory | Scanalyzed Adv. Sensor Array | -6/Factory | Scanalyzed Robot Schematics ------------------ None Fabricated ------------ Lgt. Angular Momentum Engine | x2 | -6/Factory | Preloaded Adv. Sensor Array | x1 | -6/Factory Alien Tech Used ----------------- None Achievements -------------- None Challenges ------------ None Game ------ Seed GatlingThermalShearcannon Manual? 0 Play Time 03:13:04 Cumulative 87.3 hours Start 2022.11.19 @ 03:35:06 End 2022.11.26 @ 22:21:10 Sessions 9 Manual Loads 0 Difficulty Adventurer Special Mode None Game No. 91 Rogue 0 Adventurer 91 Explorer 0 Win Type - Total 0 Types 0/0/0/0/0/0/0/0/0 Lore% 38 Gallery% 49 Achievement% 33 Wizard Run 0 Options --------- ASCII 0 Keyboard 0 Movement Mouse Keybinds 0 Fullscreen 1 Font 16/SmallcapsGlow Map View 113x50 Tactical HUD 1 Map Filters NONE Filters NONE Steam 1 RUN: 678982ea-05ce-40d6-b5be-2dfd8ed8a3fb